fUST/lending_fUST_20240701
["ID","MTS","AMOUNT","RATE_DAILY","PERIOD"]
[330793510,1719796243656,-151.0,0.00015542,2]
[330793511,1719796243666,-151.0,0.00015542,2]
[330793512,1719796243676,-151.0,0.00015542,2]
[330793513,1719796243689,-1932.08,0.00015542,2]
[330793514,1719796243698,-471.576382,0.00015542,2]
[330793515,1719796243709,-471.576382,0.00015542,2]
[330793516,1719796243722,-471.576382,0.00015542,2]
[330793517,1719796243731,-471.576382,0.00015542,2]
[330793518,1719796243740,-471.576382,0.00015542,2]
[330793519,1719796243750,-471.576382,0.00015542,2]
[330793520,1719796243759,-471.576382,0.00015542,2]
[330793521,1719796243768,-471.576382,0.00015542,2]
[330793522,1719796243778,-2225.02,0.00015542,2]
[330793523,1719796243787,-776.072861,0.00015542,2]
[330793524,1719796243797,-776.072861,0.00015542,2]
[330793525,1719796243806,-776.072861,0.00015542,2]
[330793526,1719796243817,-776.072861,0.00015542,2]
[330793527,1719796243826,-776.072861,0.00015542,2]
[330793528,1719796243836,-1110.65,0.00015542,2]
[330793529,1719796243846,-776.072861,0.00015542,2]
[330793530,1719796243855,-776.072861,0.00015542,2]
[330793531,1719796243865,-776.072861,0.00015542,2]
[330793532,1719796243875,-500.0,0.00015542,2]
[330793533,1719796243884,-500.0,0.00015542,2]
[330793534,1719796243894,-1066.68,0.00015542,2]
[330793535,1719796243904,-3671.02,0.00015542,2]
[330793536,1719796243914,-151.0,0.00015542,2]
[330793537,1719796243923,-151.0,0.00015542,2]
[330793538,1719796243933,-151.0,0.00015542,2]
[330793539,1719796243943,-151.0,0.00015542,2]
[330793540,1719796243953,-151.0,0.00015542,2]
[330793541,1719796243965,-151.0,0.00015542,2]
[330793542,1719796243975,-151.0,0.00015542,2]
[330793543,1719796243985,-151.0,0.00015542,2]
[330793544,1719796243994,-151.0,0.00015542,2]
[330793545,1719796244004,-207.588812,0.00015542,2]
[330793546,1719796244013,-151.0,0.00015542,2]
[330793547,1719796244023,-207.588812,0.00015542,2]
[330793548,1719796244032,-162.761433,0.00015542,2]
[330793549,1719796244042,-207.588812,0.00015542,2]
[330793550,1719796244052,-207.588812,0.00015542,2]
[330793551,1719796244061,-151.0,0.00015542,2]
[330793552,1719796244071,-151.0,0.00015542,2]
[330793553,1719796244080,-151.0,0.00015542,2]
[330793554,1719796244091,-207.588812,0.00015542,2]
[330793555,1719796244100,-207.588812,0.00015542,2]
[330793556,1719796244109,-207.588812,0.00015542,2]
[330793557,1719796244119,-207.588812,0.00015542,2]
[330793558,1719796244128,-151.0,0.00015542,2]
[330793559,1719796244138,-500.0,0.00015542,2]
[330793560,1719796244150,-500.0,0.00015542,2]
[330793561,1719796244160,-485.299881,0.00015542,2]
[330793562,1719796244169,-485.299881,0.00015542,2]
[330793563,1719796244179,-485.299881,0.00015542,2]
[330793564,1719796244188,-485.299881,0.00015542,2]
[330793565,1719796244198,-485.299881,0.00015542,2]
[330793566,1719796244207,-485.299881,0.00015542,2]
[330793567,1719796244220,-485.299881,0.00015542,2]
[330793568,1719796244230,-485.299881,0.00015542,2]
[330793569,1719796244239,-485.299881,0.00015542,2]
[330793570,1719796244249,-485.299881,0.00015542,2]
[330793571,1719796244258,-485.299881,0.00015542,2]
[330793572,1719796244268,-485.299881,0.00015542,2]
[330793573,1719796244278,-485.299881,0.00015542,2]
[330793574,1719796244288,-485.299881,0.00015542,2]
[330793575,1719796244297,-485.299881,0.00015542,2]
[330793576,1719796244307,-485.299881,0.00015542,2]
[330793577,1719796244318,-485.299881,0.00015542,2]
[330793578,1719796244327,-500.0,0.00015542,2]
[330793579,1719796244337,-485.299887,0.00015542,2]
[330793580,1719796244347,-1102.5,0.00015542,2]
[330793581,1719796244356,-151.0,0.00015542,2]
[330793582,1719796244365,-210.779414,0.00015542,2]
[330793583,1719796244375,-1252.52,0.00015542,2]
[330793584,1719796244385,-500.0,0.00015543,2]
[330793585,1719796244394,-557.41940727,0.00015543,2]
[330793586,1719796244404,-500.0,0.00015543,2]
[330793587,1719796244413,-500.0,0.00015543,2]
[330793588,1719796244424,-926.63,0.00015543,2]
[330793589,1719796244434,-488.35112545,0.00015543,2]
[330793590,1719796244443,-500.0,0.00015543,2]
[330793591,1719796244453,-1000.0,0.00015543,2]
[330793592,1719796244464,-1396.75,0.00015543,2]
[330793593,1719796244472,-500.0,0.00015543,2]
[330793594,1719796244482,-500.0,0.00015543,2]
[330793595,1719796244491,-500.0,0.00015543,2]
[330793596,1719796244500,-450.6636959,0.00015543,2]
[330793597,1719796244510,-151.0,0.00015543,2]
[330793598,1719796244519,-500.0,0.00015543,2]
[330793599,1719796244528,-500.0,0.00015543,2]
[330793600,1719796244538,-500.0,0.00015543,2]
[330793601,1719796244547,-151.0,0.00015543,2]
[330793602,1719796244557,-151.0,0.00015543,2]
[330793603,1719796244567,-151.0,0.00015543,2]
[330793604,1719796244576,-151.0,0.00015543,2]
[330793605,1719796244586,-151.0,0.00015543,2]
[330793606,1719796244595,-151.0,0.00015543,2]
[330793607,1719796244604,-151.0,0.00015543,2]
[330793608,1719796244614,-151.0,0.00015543,2]
[330793609,1719796244623,-151.0,0.00015543,2]
[330793610,1719796244633,-151.0,0.00015543,2]
[330793611,1719796244642,-151.0,0.00015543,2]
[330793612,1719796244651,-151.0,0.00015543,2]
[330793613,1719796244661,-181.00636,0.00015543,2]
[330793614,1719796244670,-1163.1,0.00015543,2]
[330793615,1719796244680,-152.348545,0.00015543,2]
[330793616,1719796244690,-500.0,0.00015543,2]
[330793617,1719796244699,-1650.89,0.00015543,2]
[330793618,1719796244708,-500.0,0.00015543,2]
[330793619,1719796244720,-151.0,0.00015543,2]
[330793620,1719796244730,-151.0,0.00015543,2]
[330793621,1719796244739,-151.0,0.00015543,2]
[330793622,1719796244751,-151.0,0.00015543,2]
[330793623,1719796244761,-151.0,0.00015543,2]
[330793624,1719796244771,-151.0,0.00015543,2]
[330793625,1719796244780,-194.317578,0.00015543,2]
[330793626,1719796244789,-896.82,0.00015543,2]
[330793627,1719796244798,-151.0,0.00015543,2]
[330793628,1719796244807,-500.0,0.00015543,2]
[330793629,1719796244817,-151.0,0.00015543,2]
[330793630,1719796244826,-873.88,0.00015543,2]
[330793631,1719796244835,-500.0,0.00015543,2]
[330793632,1719796244845,-500.0,0.00015543,2]
[330793633,1719796244854,-151.0,0.00015543,2]
[330793634,1719796244863,-500.0,0.00015543,2]
[330793635,1719796244872,-500.0,0.00015543,2]
[330793636,1719796244881,-151.0,0.00015543,2]
[330793637,1719796244890,-151.0,0.00015543,2]
[330793638,1719796244899,-500.0,0.00015543,2]
[330793639,1719796244909,-500.0,0.00015543,2]
[330793640,1719796244918,-500.0,0.00015543,2]
[330793641,1719796244927,-151.0,0.00015543,2]
[330793642,1719796244936,-151.0,0.00015543,2]
[330793643,1719796244945,-151.0,0.00015543,2]
[330793644,1719796244954,-151.0,0.00015543,2]
[330793645,1719796244965,-151.0,0.00015543,2]
[330793646,1719796244974,-264.159524,0.00015543,2]
[330793647,1719796244983,-500.0,0.00015543,2]
[330793648,1719796244992,-500.0,0.00015543,2]
[330793649,1719796245002,-480.59468054,0.00015543,2]
[330793687,1719796580365,1012.65486333,0.00014999,2]
[330793704,1719797162187,3500.0,0.00015001,2]
[330793714,1719797220828,-1139.895225,0.00015275,2]
[330793715,1719797221025,-261.87125215,0.00015439,2]
[330793716,1719797221061,-300.0,0.00015535,2]
[330793717,1719797221084,-21606.333546,0.00015536,2]
[330793718,1719797221107,-1189.13,0.00015538,2]
[330793719,1719797221130,-500.0,0.00015538,2]
[330793720,1719797221152,-931.06,0.00015538,2]
[330793721,1719797221174,-500.0,0.00015538,2]
[330793722,1719797221199,-9218.22,0.00015538,2]
[330793723,1719797221221,-1235.7,0.00015538,2]
[330793724,1719797221245,-502.0,0.00015538,2]
[330793725,1719797221268,-2311.55,0.00015538,2]
[330793726,1719797221290,-737.61,0.00015538,2]
[330793727,1719797221319,-500.0,0.00015538,2]
[330793728,1719797221341,-265.69917481,0.00015539,2]
[330793729,1719797221366,-500.0,0.00015539,2]
[330793730,1719797221388,-500.0,0.00015539,2]
[330793731,1719797221409,-508.52,0.00015539,2]
[330793732,1719797221431,-500.0,0.00015539,2]
[330793733,1719797221455,-500.0,0.00015539,2]
[330793734,1719797221478,-500.0,0.00015539,2]
[330793735,1719797221502,-500.0,0.00015539,2]
[330793736,1719797221524,-500.0,0.00015539,2]
[330793737,1719797221550,-500.0,0.00015539,2]
[330793738,1719797221571,-500.0,0.00015539,2]
[330793739,1719797221592,-500.0,0.00015539,2]
[330793740,1719797221614,-500.0,0.00015539,2]
[330793741,1719797221635,-500.0,0.00015539,2]
[330793742,1719797221657,-500.0,0.00015539,2]
[330793743,1719797221680,-500.0,0.00015539,2]
[330793744,1719797221703,-500.68211013,0.00015539,2]
[330793745,1719797221727,-500.0,0.00015539,2]
[330793746,1719797221754,-500.0,0.00015539,2]
[330793747,1719797221785,-500.0,0.00015539,2]
[330793748,1719797221812,-500.0,0.00015539,2]
[330793749,1719797221835,-500.0,0.00015539,2]
[330793750,1719797221858,-500.0,0.00015539,2]
[330793751,1719797221885,-500.0,0.00015539,2]
[330793752,1719797221907,-500.0,0.00015539,2]
[330793753,1719797221930,-500.0,0.00015539,2]
[330793754,1719797221953,-500.0,0.00015539,2]
[330793755,1719797221976,-509.67952454,0.00015539,2]
[330793756,1719797221998,-500.0,0.00015539,2]
[330793757,1719797222022,-992.96,0.00015539,2]
[330793758,1719797222047,-519.50420542,0.00015539,2]
[330793759,1719797222072,-500.0,0.00015539,2]
[330793760,1719797222098,-500.0,0.00015539,2]
[330793761,1719797222122,-500.0,0.00015539,2]
[330793762,1719797222145,-500.0,0.00015539,2]
[330793763,1719797222168,-574.07641239,0.00015539,2]
[330793764,1719797222190,-500.0,0.00015539,2]
[330793765,1719797222212,-500.0,0.00015539,2]
[330793766,1719797222235,-500.0,0.00015539,2]
[330793767,1719797222259,-500.0,0.00015539,2]
[330793768,1719797222281,-1494.09,0.00015539,2]
[330793769,1719797222305,-500.0,0.00015539,2]
[330793770,1719797222327,-606.7,0.00015539,2]
[330793771,1719797222350,-500.0,0.00015539,2]
[330793772,1719797222373,-500.0,0.00015539,2]
[330793773,1719797222397,-804.6,0.00015539,2]
[330793774,1719797222420,-500.0,0.00015539,2]
[330793775,1719797222443,-500.0,0.00015539,2]
[330793776,1719797222470,-500.0,0.00015539,2]
[330793777,1719797222492,-500.0,0.00015539,2]
[330793778,1719797222515,-533.21,0.00015539,2]
[330793779,1719797222539,-500.0,0.00015539,2]
[330793780,1719797222561,-500.0,0.00015539,2]
[330793781,1719797222582,-151.568617,0.00015539,2]
[330793782,1719797222603,-1114.64,0.00015539,2]
[330793783,1719797222626,-155.69982,0.00015539,2]
[330793784,1719797222652,-500.0,0.00015539,2]
[330793785,1719797222674,-500.0,0.00015539,2]
[330793786,1719797222695,-1582.1,0.00015539,2]
[330793787,1719797222716,-500.0,0.00015539,2]
[330793788,1719797222738,-500.0,0.00015539,2]
[330793789,1719797222762,-500.0,0.00015539,2]
[330793790,1719797222784,-1851.57,0.00015539,2]
[330793791,1719797222805,-151.0,0.00015539,2]
[330793792,1719797222829,-151.0,0.00015539,2]
[330793793,1719797222854,-151.0,0.00015539,2]
[330793794,1719797222877,-500.0,0.00015539,2]
[330793795,1719797222899,-151.0,0.00015539,2]
[330793796,1719797222921,-151.0,0.00015539,2]
[330793797,1719797222943,-151.0,0.00015539,2]
[330793798,1719797222965,-2132.31,0.00015539,2]
[330793799,1719797222987,-151.0,0.00015539,2]
[330793800,1719797223008,-151.0,0.00015539,2]
[330793801,1719797223034,-859.45,0.00015539,2]
[330793802,1719797223057,-151.0,0.00015539,2]
[330793803,1719797223079,-500.0,0.00015539,2]
[330793804,1719797223102,-1064.38,0.00015539,2]
[330793805,1719797223124,-500.0,0.00015539,2]
[330793806,1719797223152,-500.0,0.00015539,2]
[330793807,1719797223174,-500.0,0.00015539,2]
[330793808,1719797223196,-500.0,0.00015539,2]
[330793809,1719797223221,-521.63,0.00015539,2]
[330793810,1719797223245,-500.0,0.00015539,2]
[330793811,1719797223268,-1022.24,0.00015539,2]
[330793812,1719797223296,-910.15,0.00015539,2]
[330793813,1719797223321,-1217.15,0.00015539,2]
[330793814,1719797223351,-1217.15,0.00015539,2]
[330793815,1719797223378,-1217.15,0.00015539,2]
[330793816,1719797223402,-3518.06,0.00015539,2]
[330793817,1719797223425,-500.0,0.00015539,2]
[330793818,1719797223452,-500.0,0.00015539,2]
[330793819,1719797223477,-500.0,0.00015539,2]
[330793820,1719797223503,-282.945829,0.00015539,2]
[330793821,1719797223532,-282.945829,0.00015539,2]
[330793822,1719797223664,-282.945829,0.00015539,2]
[330793823,1719797223688,-282.945829,0.00015539,2]
[330793824,1719797223711,-282.945829,0.00015539,2]
[330793825,1719797223734,-282.945829,0.00015539,2]
[330793826,1719797223758,-282.945829,0.00015539,2]
[330793827,1719797223781,-282.945829,0.00015539,2]
[330793828,1719797223806,-500.0,0.00015539,2]
[330793829,1719797223828,-282.945829,0.00015539,2]
[330793830,1719797223852,-282.945829,0.00015539,2]
[330793831,1719797223875,-33.20182256,0.00015539,2]
[330793847,1719797430298,150.66,0.00015535,62]
[330793922,1719797438941,-209.49700172,0.00015439,2]
[330793923,1719797438951,-300.0,0.00015537,2]
[330793924,1719797438961,-300.0,0.00015537,2]
[330793925,1719797438970,-1774.42,0.00015538,2]
[330793926,1719797438980,-2043.46,0.00015538,2]
[330793927,1719797438989,-1020.03,0.00015538,2]
[330793928,1719797438999,-500.0,0.00015538,2]
[330793929,1719797439008,-305.38030515,0.00015538,2]
[330793930,1719797439018,-1139.58,0.00015538,2]
[330793931,1719797439028,-979.64,0.00015538,2]
[330793932,1719797439038,-3371.47,0.00015538,2]
[330793933,1719797439048,-500.0,0.00015538,2]
[330793934,1719797439058,-892.26,0.00015538,2]
[330793935,1719797439068,-351.12,0.00015538,2]
[330793936,1719797439079,-500.0,0.00015538,2]
[330793937,1719797439088,-70.38469456,0.00015538,2]
[330794014,1719797440911,-429.61530544,0.00015538,2]
[330794016,1719797440921,-500.0,0.00015538,2]
[330794018,1719797440931,-8834.13,0.00015538,2]
[330794020,1719797440941,-2962.36,0.00015538,2]
[330794022,1719797440951,-1184.21,0.00015538,2]
[330794023,1719797440961,-2215.24,0.00015538,2]
[330794024,1719797440971,-500.0,0.00015538,2]
[330794025,1719797440981,-500.0,0.00015538,2]
[330794027,1719797440991,-1015.63,0.00015538,2]
[330794029,1719797441000,-1176.67,0.00015538,2]
[330794031,1719797441010,-1328.35,0.00015538,2]
[330794033,1719797441020,-707.35,0.00015538,2]
[330794035,1719797441029,-500.0,0.00015538,2]
[330794037,1719797441038,-2826.05,0.00015538,2]
[330794039,1719797441048,-500.0,0.00015538,2]
[330794041,1719797441057,-1511.53394849,0.00015538,2]
[330796382,1719797544044,155.12411335,0.00014999,2]
[330796384,1719797554000,155.04141504,0.00014999,2]
[330796385,1719797626251,219.95874668,0.00014999,2]
[330796386,1719797638664,157.7769976,0.0001454,2]
[330796387,1719797816081,185.63,0.00010959,2]
[330796388,1719797826864,1073.74,0.00010959,2]
[330796389,1719797837494,894.79,0.00010959,2]
[330796390,1719797861195,745.66,0.00010959,2]
[330796391,1719797871710,621.38,0.00010959,2]
[330796392,1719797893794,517.82,0.00010959,2]
[330796393,1719797915077,431.51,0.00010959,2]
[330796394,1719797925626,359.59,0.00010959,2]
[330796395,1719797936156,299.66,0.00010959,2]
[330796396,1719797946701,249.72,0.00010959,2]
[330796397,1719797956662,3142.14028266,0.00014999,4]
[330796398,1719797957683,208.1,0.00010959,2]
[330796399,1719797959589,2852.62244523,0.00015,2]
[330796400,1719797968204,173.42,0.00010959,2]
[330796401,1719797979003,867.1,0.00010959,2]
[330796402,1719798124773,408.5,0.00024,120]
[330796403,1719798451491,371.2768959,0.00025,120]
[330796405,1719798485900,155.77937767,0.00015,2]
[330796542,1719798638822,-157.2725311,0.00015387,2]
[330796544,1719798638832,-173.45854027,0.00015438,2]
[330796546,1719798638843,-4906.855754,0.000155,2]
[330796548,1719798638860,-408.0,0.000155,2]
[330797018,1719798713321,116000.0,0.00015,2]
[330797019,1719798781480,150.48,0.00015001,2]
[330797020,1719798914538,11444.59863142,0.00014876,2]
[330797025,1719799525569,7000.0,0.000225,30]
[330797062,1719799833261,-648.89611143,0.00015237,2]
[330797063,1719799833271,-173.45854023,0.00015433,2]
[330797065,1719799833280,-300.0,0.00015499,2]
[330797067,1719799833289,-27762.66758759,0.000155,2]
[330797069,1719799833298,-1095.69,0.00015531,2]
[330797071,1719799833307,-500.0,0.00015531,2]
[330797073,1719799833317,-857.22,0.00015531,2]
[330797075,1719799833326,-253.40561346,0.00015531,2]
[330797076,1719799833335,-8613.24,0.00015531,2]
[330797078,1719799833344,-1136.75,0.00015531,2]
[330797079,1719799833353,-2126.57,0.00015531,2]
[330797080,1719799833363,-500.0,0.00015531,2]
[330797081,1719799833372,-677.88,0.00015532,2]
[330797082,1719799833381,-500.0,0.00015532,2]
[330797083,1719799833390,-2909.59,0.00015532,2]
[330797084,1719799833399,-1961.17,0.00015532,2]
[330797085,1719799833409,-978.89,0.00015532,2]
[330797086,1719799833418,-358.9599361,0.00015532,2]
[330797087,1719799833585,-141.0400639,0.00015532,2]
[330797089,1719799833595,-594.6599361,0.00015532,2]
[330797126,1719799838929,-649.63,0.00015531,2]
[330797128,1719799838941,-344.8900639,0.00015532,2]
[330797130,1719799838950,-3235.78,0.00015532,2]
[330797132,1719799838960,-500.0,0.00015532,2]
[330797135,1719799838971,-500.0,0.00015532,2]
[330797138,1719799838983,-500.0,0.00015532,2]
[330797141,1719799838993,-6531.59,0.00015532,2]
[330797144,1719799839003,-500.0,0.00015532,2]
[330797146,1719799839013,-500.0,0.00015532,2]
[330797148,1719799839023,-1129.73,0.00015532,2]
[330797150,1719799839034,-1273.47,0.00015532,2]
[330797152,1719799839045,-6045.55,0.00015532,2]
[330797154,1719799839055,-1606.31,0.00015532,2]
[330797156,1719799839065,-500.0,0.00015533,2]
[330797158,1719799839075,-953.02,0.00015533,2]
[330797160,1719799839085,-339.49712078,0.00015533,2]
[330797162,1719799839096,-500.0,0.00015533,2]
[330797164,1719799839106,-1433.19,0.00015533,2]
[330797166,1719799839116,-500.0,0.00015533,2]
[330797168,1719799839126,-500.0,0.00015533,2]
[330797170,1719799839136,-500.0,0.00015533,2]
[330797172,1719799839147,-500.0,0.00015533,2]
[330797174,1719799839156,-500.0,0.00015533,2]
[330797176,1719799839169,-1069.06,0.00015533,2]
[330797178,1719799839179,-500.0,0.00015533,2]
[330797180,1719799839194,-1517.25,0.00015533,2]
[330797182,1719799839204,-500.0,0.00015533,2]
[330797184,1719799839214,-500.0,0.00015533,2]
[330797186,1719799839224,-500.0,0.00015533,2]
[330797188,1719799839235,-824.56,0.00015533,2]
[330797190,1719799839246,-500.0,0.00015533,2]
[330797192,1719799839256,-500.0,0.00015533,2]
[330797194,1719799839266,-909.5,0.00015533,2]
[330797196,1719799839275,-503.93291052,0.00015533,2]
[330797198,1719799839288,-500.0,0.00015533,2]
[330797200,1719799839299,-500.0,0.00015533,2]
[330797202,1719799839309,-500.0,0.00015533,2]
[330797204,1719799839319,-500.0,0.00015533,2]
[330797206,1719799839329,-500.0,0.00015533,2]
[330797208,1719799839339,-500.0,0.00015533,2]
[330797210,1719799839349,-505.58566647,0.00015533,2]
[330797213,1719799839359,-500.0,0.00015533,2]
[330797214,1719799839369,-500.0,0.00015533,2]
[330797217,1719799839380,-500.0,0.00015533,2]
[330797218,1719799839390,-500.0,0.00015533,2]
[330797220,1719799839400,-500.0,0.00015533,2]
[330797222,1719799839410,-500.0,0.00015533,2]
[330797224,1719799839421,-500.0,0.00015533,2]
[330797226,1719799839431,-500.0,0.00015533,2]
[330797228,1719799839440,-500.0,0.00015533,2]
[330797230,1719799839450,-500.0,0.00015533,2]
[330797232,1719799839460,-500.0,0.00015533,2]
[330797234,1719799839471,-506.95206482,0.00015533,2]
[330797236,1719799839480,-291.85557236,0.00015533,2]
[330797238,1719799839490,-500.0,0.00015533,2]
[330797240,1719799839500,-193.58764215,0.00015533,2]
[330797242,1719799839510,-500.0,0.00015533,2]
[330797244,1719799839520,-501.3957456,0.00015533,2]
[330797246,1719799839530,-949.61,0.00015533,2]
[330797248,1719799839540,-500.0,0.00015533,2]
[330797250,1719799839550,-503.93104546,0.00015533,2]
[330797252,1719799839560,-494.993152,0.00015533,2]
[330797254,1719799839570,-500.0,0.00015533,2]
[330797256,1719799839579,-494.993152,0.00015533,2]
[330797258,1719799839589,-550.93,0.00015533,2]
[330797260,1719799839599,-240.40959555,0.00015533,2]
[330797262,1719799839609,-151.0,0.00015533,2]
[330797264,1719799839619,-151.0,0.00015533,2]
[330797266,1719799839628,-505.34645258,0.00015533,2]
[330797268,1719799839638,-500.0,0.00015533,2]
[330797270,1719799839648,-503.79850141,0.00015533,2]
[330797271,1719799839657,-503.01522881,0.00015533,2]
[330797273,1719799839667,-269.35415201,0.00015533,2]
[330797275,1719799839678,-771.85,0.00015533,2]
[330797277,1719799839688,-837.4,0.00015533,2]
[330797279,1719799839697,-500.0,0.00015533,2]
[330797281,1719799839707,-165.799716,0.00015533,2]
[330797283,1719799839718,-661.23,0.00015533,2]
[330797285,1719799839727,-151.0,0.00015533,2]
[330797287,1719799839736,-151.779292,0.00015533,2]
[330797289,1719799839746,-165.799716,0.00015533,2]
[330797291,1719799839756,-500.0,0.00015533,2]
[330797293,1719799839767,-1083.91,0.00015533,2]
[330797295,1719799839778,-2841.8,0.00015533,2]
[330797297,1719799839788,-500.0,0.00015533,2]
[330797299,1719799839798,-612.61,0.00015533,2]
[330797301,1719799839808,-500.0,0.00015533,2]
[330797303,1719799839819,-500.0,0.00015533,2]
[330797305,1719799839829,-500.0,0.00015533,2]
[330797307,1719799839840,-504.84568023,0.00015533,2]
[330797309,1719799839851,-974.04,0.00015533,2]
[330797311,1719799839861,-500.0,0.00015533,2]
[330797313,1719799839871,-500.0,0.00015533,2]
[330797314,1719799839881,-500.0,0.00015533,2]
[330797316,1719799839891,-500.0,0.00015533,2]
[330797318,1719799839901,-673.21752935,0.00015533,2]
[330797321,1719799839916,-302.508594,0.00015533,2]
[330797323,1719799839928,-156.42387665,0.00015533,2]
[330797325,1719799839937,-500.0,0.00015533,2]
[330797340,1719799839951,-500.0,0.00015533,2]
[330797343,1719799840115,-502.502646,0.00015533,2]
[330797345,1719799840125,-501.94629946,0.00015533,2]
[330797347,1719799840136,-151.0,0.00015533,2]
[330797349,1719799840146,-151.0,0.00015533,2]
[330797351,1719799840156,-195.502671,0.00015533,2]
[330797352,1719799840170,-500.0,0.00015533,2]
[330797353,1719799840180,-1082.33,0.00015533,2]
[330797354,1719799840195,-207.7526349,0.00015533,2]
[330797355,1719799840205,-505.91,0.00015533,2]
[330797356,1719799840214,-153.354111,0.00015533,2]
[330797357,1719799840224,-500.0,0.00015533,2]
[330797358,1719799840234,-500.0,0.00015533,2]
[330797359,1719799840243,-151.0,0.00015533,2]
[330797360,1719799840252,-151.0,0.00015533,2]
[330797361,1719799840261,-152.008976,0.00015533,2]
[330797362,1719799840270,-151.0,0.00015533,2]
[330797363,1719799840282,-585.72,0.00015533,2]
[330797364,1719799840292,-151.0,0.00015533,2]
[330797365,1719799840301,-151.0,0.00015533,2]
[330797366,1719799840311,-151.0,0.00015533,2]
[330797367,1719799840320,-151.0,0.00015533,2]
[330797368,1719799840329,-506.32620079,0.00015533,2]
[330797369,1719799840338,-151.0,0.00015533,2]
[330797370,1719799840347,-213.477226,0.00015533,2]
[330797371,1719799840356,-547.2,0.00015533,2]
[330797372,1719799840365,-502.53157898,0.00015533,2]
[330797373,1719799840375,-391.24533982,0.00015533,2]
[330797374,1719799840384,-500.0,0.00015533,2]
[330797375,1719799840393,-151.0,0.00015534,2]
[330797376,1719799840402,-494.993152,0.00015534,2]
[330797377,1719799840414,-494.993152,0.00015534,2]
[330797378,1719799840423,-500.0,0.00015534,2]
[330797379,1719799840433,-165.799716,0.00015534,2]
[330797380,1719799840443,-165.799716,0.00015534,2]
[330797381,1719799840452,-3986.98957408,0.00015534,2]
[330797383,1719799840465,-650.48042592,0.00015534,2]
[330797385,1719799840474,-503.14166487,0.00015534,2]
[330797387,1719799840484,-500.0,0.00015534,2]
[330797390,1719799840494,-500.0,0.00015534,2]
[330797392,1719799840503,-500.90506201,0.00015534,2]
[330797646,1719800113872,154.89931544,0.00014999,2]
[330797657,1719800890333,207.89902475,9.9e-05,2]
[330797808,1719801039239,-300.0,0.00015528,2]
[330797811,1719801039249,-200.0,0.00015529,2]
[330797813,1719801039262,-697.62962853,0.00015529,2]
[330797815,1719801039275,-15.68037147,0.00015529,2]
[330797817,1719801039285,-500.0,0.00015529,2]
[330797819,1719801039296,-485.20181853,0.00015529,2]
[330797861,1719801039734,-888.26818147,0.00015529,2]
[330797864,1719801039755,-33.3164789,0.00015529,2]
[330798291,1719801044515,-173.45854023,0.0001543,2]
[330798293,1719801044525,-413.21718447,0.00015529,2]
[330799867,1719801470254,-173.45854023,0.0001543,2]
[330799868,1719801470277,-150.633,0.00015451,2]
[330799869,1719801470300,-877.0,0.00015451,2]
[330799870,1719801470321,-888.256,0.00015451,2]
[330799871,1719801470345,-467.3772696,0.00015528,2]